fUST/lending_fUST_20240302
["ID","MTS","AMOUNT","RATE_DAILY","PERIOD"]
[316054619,1709340643642,-9603.74,0.00020915,2]
[316054620,1709340643651,-500.0,0.00020919,2]
[316054621,1709340643660,-542.97,0.00020919,2]
[316054622,1709340643670,-500.0,0.00020919,2]
[316054623,1709340643679,-775.31,0.00020919,2]
[316054624,1709340643688,-2890.44,0.00020919,2]
[316054625,1709340643698,-570.02,0.00020919,2]
[316054626,1709340643708,-570.02,0.00020919,2]
[316054627,1709340643718,-500.0,0.00020919,2]
[316054628,1709340643728,-316.8,0.00020919,2]
[316054629,1709340643737,-1545.51,0.00020919,2]
[316054630,1709340643746,-598.6526367,0.00020919,2]
[316054631,1709340643756,-1362.81,0.00020919,2]
[316054632,1709340643765,-2169.7,0.00020919,2]
[316054633,1709340643774,-9603.74,0.00020919,2]
[316054634,1709340643783,-500.0,0.00020919,2]
[316054635,1709340643792,-500.0,0.00020919,2]
[316054636,1709340643802,-500.0,0.00020919,2]
[316054637,1709340643811,-500.0,0.00020919,2]
[316054638,1709340643820,-500.0,0.00020919,2]
[316054639,1709340643828,-500.0,0.00020919,2]
[316054640,1709340643837,-1003.2,0.00020919,2]
[316054641,1709340643847,-1133.98,0.00020919,2]
[316054642,1709340643857,-500.0,0.00020919,2]
[316054643,1709340643867,-576.44,0.00020919,2]
[316054644,1709340643876,-576.44,0.00020919,2]
[316054646,1709340643886,-886.68,0.00020919,2]
[316054648,1709340643895,-886.68,0.00020919,2]
[316054650,1709340643904,-500.0,0.00020919,2]
[316054652,1709340643913,-1160.61,0.00020919,2]
[316054654,1709340643922,-630.67326243,0.00020919,2]
[316054656,1709340643931,-500.0,0.0002092,2]
[316054657,1709340643940,-500.0,0.0002092,2]
[316054660,1709340643949,-500.0,0.0002092,2]
[316054661,1709340643958,-500.0,0.0002092,2]
[316054663,1709340643967,-542.97,0.0002092,2]
[316054665,1709340643976,-542.97,0.0002092,2]
[316054667,1709340643985,-542.97,0.0002092,2]
[316054669,1709340643994,-542.97,0.0002092,2]
[316054671,1709340644003,-578.73,0.0002092,2]
[316054673,1709340644013,-578.73,0.0002092,2]
[316054675,1709340644022,-578.73,0.0002092,2]
[316054677,1709340644031,-578.73,0.0002092,2]
[316054678,1709340644040,-578.73,0.0002092,2]
[316054680,1709340644049,-500.0,0.0002092,2]
[316054681,1709340644058,-523.51,0.0002092,2]
[316054683,1709340644067,-523.51,0.0002092,2]
[316054685,1709340644076,-523.51,0.0002092,2]
[316054686,1709340644085,-523.51,0.0002092,2]
[316054687,1709340644094,-523.51,0.0002092,2]
[316054688,1709340644103,-9603.74,0.0002092,2]
[316054689,1709340644112,-9603.74,0.0002092,2]
[316054690,1709340644125,-9603.74,0.0002092,2]
[316054691,1709340644134,-9603.74,0.0002092,2]
[316054692,1709340644142,-775.31,0.00020941,2]
[316054693,1709340644152,-2169.7,0.00020941,2]
[316054694,1709340644161,-1003.2,0.00020941,2]
[316054695,1709340644170,-290.62562377,0.00020941,2]
[316054696,1709340644179,-1160.61,0.00020941,2]
[316054697,1709340644188,-570.02,0.00020942,2]
[316054698,1709340644198,-500.0,0.00020942,2]
[316054699,1709340644207,-500.0,0.00020942,2]
[316054700,1709340644216,-500.0,0.00020942,2]
[316054701,1709340644225,-576.44,0.00020942,2]
[316054702,1709340644233,-886.68,0.00020942,2]
[316054703,1709340644242,-2890.44,0.00020943,2]
[316054704,1709340644251,-1545.51,0.00020943,2]
[316054705,1709340644261,-1362.81,0.00020943,2]
[316054706,1709340644270,-1133.98,0.00020943,2]
[316054707,1709340644279,-500.0,0.00020944,2]
[316054708,1709340644288,-542.97,0.00020944,2]
[316054709,1709340644297,-578.73,0.00020944,2]
[316054710,1709340644306,-523.51,0.00020944,2]
[316054711,1709340644315,-9603.74,0.00020944,2]
[316054712,1709340644324,-500.0,0.00020994,2]
[316054713,1709340644333,-542.97,0.00020994,2]
[316054714,1709340644342,-775.31,0.00020994,2]
[316054715,1709340644352,-570.02,0.00020994,2]
[316054716,1709340644362,-570.02,0.00020994,2]
[316054717,1709340644371,-2169.7,0.00020994,2]
[316054718,1709340644380,-9603.74,0.00020994,2]
[316054719,1709340644389,-500.0,0.00020994,2]
[316054720,1709340644399,-500.0,0.00020994,2]
[316054721,1709340644408,-500.0,0.00020994,2]
[316054722,1709340644417,-500.0,0.00020994,2]
[316054723,1709340644426,-1003.2,0.00020994,2]
[316054724,1709340644435,-576.44,0.00020994,2]
[316054725,1709340644444,-886.68,0.00020994,2]
[316054726,1709340644453,-886.68,0.00020994,2]
[316054727,1709340644462,-1160.61,0.00020994,2]
[316054728,1709340644471,-500.0,0.00020995,2]
[316054729,1709340644480,-240.58,0.00020995,2]
[316054730,1709340644490,-542.97,0.00020995,2]
[316054731,1709340644500,-542.97,0.00020995,2]
[316054732,1709340644509,-542.97,0.00020995,2]
[316054733,1709340644519,-542.97,0.00020995,2]
[316054734,1709340644528,-543.06,0.00020995,2]
[316054735,1709340644537,-578.73,0.00020995,2]
[316054736,1709340644546,-578.73,0.00020995,2]
[316054737,1709340644556,-151.0,0.00020995,2]
[316054738,1709340644565,-523.51,0.00020995,2]
[316054739,1709340644574,-523.51,0.00020995,2]
[316054740,1709340644584,-775.31,0.00020995,2]
[316054741,1709340644593,-2890.44,0.00020995,2]
[316054742,1709340644603,-570.02,0.00020995,2]
[316054743,1709340644613,-1545.51,0.00020995,2]
[316054744,1709340644623,-1362.81,0.00020995,2]
[316054745,1709340644633,-2169.7,0.00020995,2]
[316054746,1709340644642,-9603.74,0.00020995,2]
[316054747,1709340644651,-9603.74,0.00020995,2]
[316054748,1709340644660,-9603.74,0.00020995,2]
[316054749,1709340644670,-9603.74,0.00020995,2]
[316054750,1709340644680,-9603.87092319,0.00020995,2]
[316054751,1709340644689,-500.0,0.00020995,2]
[316054752,1709340644699,-500.0,0.00020995,2]
[316054753,1709340644708,-500.0,0.00020995,2]
[316054754,1709340644718,-1003.2,0.00020995,2]
[316054755,1709340644727,-1133.98,0.00020995,2]
[316054756,1709340644741,-576.44,0.00020995,2]
[316054757,1709340644820,-576.44,0.00020995,2]
[316054758,1709340644830,-886.68,0.00020995,2]
[316054759,1709340644839,-1160.61,0.00020995,2]
[316054760,1709340644848,-591.738319,0.00020995,2]
[316054761,1709340644861,-591.738319,0.00020995,2]
[316054762,1709340644870,-578.73,0.00020996,2]
[316054763,1709340644879,-578.73,0.00020996,2]
[316054764,1709340644888,-578.73,0.00020996,2]
[316054765,1709340644897,-578.73,0.00020996,2]
[316054766,1709340644907,-578.76111517,0.00020996,2]
[316054767,1709340644916,-523.51,0.00020996,2]
[316054768,1709340644925,-523.51,0.00020996,2]
[316054769,1709340644934,-523.51,0.00020996,2]
[316054770,1709340644943,-523.51,0.00020996,2]
[316054771,1709340644952,-523.61727978,0.00020996,2]
[316054772,1709340644961,-300.0,0.00021,9]
[316054773,1709340644971,-2364.90063215,0.00021,2]
[316054774,1709340644980,-570.02,0.00021027,2]
[316054775,1709340644989,-500.0,0.00021027,2]
[316054776,1709340644999,-886.68,0.00021027,2]
[316054777,1709340645008,-1187.61,0.00021028,2]
[316054778,1709340645018,-1187.61,0.00021028,2]
[316054779,1709340645026,-1187.61,0.00021028,2]
[316054780,1709340645035,-1187.61,0.00021028,2]
[316054781,1709340645044,-1187.61,0.00021028,2]
[316054782,1709340645053,-1187.61,0.00021028,2]
[316054783,1709340645062,-1187.61,0.00021028,2]
[316054784,1709340645070,-1187.61,0.00021028,2]
[316054785,1709340645079,-1187.61,0.00021028,2]
[316054786,1709340645090,-1187.61,0.00021028,2]
[316054787,1709340645099,-775.31,0.00021028,2]
[316054788,1709340645109,-775.31,0.00021028,2]
[316054789,1709340645118,-775.31,0.00021028,2]
[316054790,1709340645127,-775.31,0.00021028,2]
[316054791,1709340645136,-2890.44,0.00021028,2]
[316054792,1709340645146,-2890.44,0.00021028,2]
[316054793,1709340645155,-2890.44,0.00021028,2]
[316054794,1709340645164,-2890.44,0.00021028,2]
[316054795,1709340645173,-570.02,0.00021028,2]
[316054796,1709340645182,-570.02,0.00021028,2]
[316054797,1709340645192,-570.02,0.00021028,2]
[316054798,1709340645201,-570.02,0.00021028,2]
[316054799,1709340645211,-570.15,0.00021028,2]
[316054800,1709340645220,-1545.51,0.00021028,2]
[316054801,1709340645230,-1545.51,0.00021028,2]
[316054802,1709340645239,-1545.51,0.00021028,2]
[316054803,1709340645248,-1545.51,0.00021028,2]
[316054804,1709340645257,-1362.81,0.00021028,2]
[316054805,1709340645267,-1362.81,0.00021028,2]
[316054806,1709340645276,-1362.81,0.00021028,2]
[316054807,1709340645285,-1362.81,0.00021028,2]
[316054808,1709340645295,-2169.7,0.00021028,2]
[316054809,1709340645304,-2169.7,0.00021028,2]
[316054810,1709340645313,-2169.7,0.00021028,2]
[316054811,1709340645323,-2169.7,0.00021028,2]
[316054812,1709340645331,-500.0,0.00021028,2]
[316054813,1709340645341,-500.0,0.00021028,2]
[316054814,1709340645349,-296.52,0.00021028,2]
[316054815,1709340645361,-500.0,0.00021028,2]
[316054816,1709340645370,-500.0,0.00021028,2]
[316054817,1709340645379,-500.0,0.00021028,2]
[316054818,1709340645387,-500.0,0.00021028,2]
[316054819,1709340645397,-500.0,0.00021028,2]
[316054820,1709340645406,-500.0,0.00021028,2]
[316054821,1709340645415,-500.0,0.00021028,2]
[316054822,1709340645424,-500.0,0.00021028,2]
[316054823,1709340645434,-490.48,0.00021028,2]
[316054824,1709340645443,-1003.2,0.00021028,2]
[316054825,1709340645452,-1003.2,0.00021028,2]
[316054826,1709340645461,-1003.2,0.00021028,2]
[316054827,1709340645471,-1003.2,0.00021028,2]
[316054828,1709340645480,-1133.98,0.00021028,2]
[316054829,1709340645489,-1133.98,0.00021028,2]
[316054830,1709340645499,-1133.98,0.00021028,2]
[316054831,1709340645508,-1133.98,0.00021028,2]
[316054832,1709340645517,-576.44,0.00021028,2]
[316054833,1709340645526,-576.44,0.00021028,2]
[316054834,1709340645536,-576.44,0.00021028,2]
[316054835,1709340645545,-576.44,0.00021028,2]
[316054836,1709340645554,-576.44,0.00021028,2]
[316054837,1709340645563,-576.44,0.00021028,2]
[316054838,1709340645573,-576.44,0.00021028,2]
[316054839,1709340645582,-576.44,0.00021028,2]
[316054840,1709340645591,-576.58,0.00021028,2]
[316054841,1709340645601,-886.68,0.00021028,2]
[316054843,1709340645613,-886.68,0.00021028,2]
[316054844,1709340645622,-886.68,0.00021028,2]
[316054845,1709340645634,-886.68,0.00021028,2]
[316054846,1709340645643,-886.87005205,0.00021028,2]
[316054847,1709340645652,-1160.61,0.00021028,2]
[316054848,1709340645662,-1160.61,0.00021028,2]
[316054849,1709340645672,-1160.61,0.00021028,2]
[316054850,1709340645681,-1160.61,0.00021028,2]
[316054851,1709340645690,-591.738319,0.00021028,2]
[316054852,1709340645700,-591.738319,0.00021028,2]
[316054853,1709340645710,-50000.0,0.00021029,4]
[316054854,1709340645719,-50000.0,0.00021029,4]
[316054855,1709340645728,-50500.0,0.00021029,4]
[316054856,1709340645738,-50000.0,0.00021029,3]
[316054858,1709340645746,-97911.02147867,0.00021029,3]
[316054859,1709340645756,-29362.26063003,0.00021029,4]
[316054861,1709340645765,-12141.32078788,0.00021029,4]
[316054862,1709340645774,-591.738319,0.00021029,2]
[316054863,1709340645783,-591.738319,0.00021029,2]
[316054864,1709340645792,-591.738319,0.00021029,2]
[316054865,1709340645802,-591.738319,0.00021029,2]
[316054866,1709340645811,-775.31,0.00021041,2]
[316054867,1709340645820,-2890.44,0.00021041,2]
[316054868,1709340645829,-1545.51,0.00021041,2]
[316054869,1709340645838,-1362.81,0.00021041,2]
[316054870,1709340645847,-2169.7,0.00021041,2]
[316054871,1709340645858,-1003.2,0.00021041,2]
[316054872,1709340645867,-1133.98,0.00021041,2]
[316054873,1709340645876,-1160.61,0.00021041,2]
[316054875,1709340645885,-3956.77413347,0.00021042,2]
[316054877,1709340645894,-31444.75182769,0.00021042,2]
[316054879,1709340645903,-5895.89096769,0.00021042,2]
[316054881,1709340645913,-442.05216894,0.00021042,2]
[316054883,1709340645922,-288.04031697,0.00021042,2]
[316054885,1709340645931,-1338.47466544,0.0002105,2]
[316054887,1709340645941,-2268.86761492,0.0002105,2]
[316054889,1709340645950,-2612.3284,0.00021196,7]
[316054891,1709340645959,-1000.0,0.000218,2]
[316054893,1709340645968,-620.76991984,0.00021823,2]
[316054895,1709340645977,-500.0,0.00021896,2]
[316054897,1709340645987,-500.0,0.00021896,2]
[316054899,1709340645995,-627.73760575,0.00021896,2]
[316054901,1709340646004,-500.0,0.00021896,2]
[316054903,1709340646013,-500.0,0.00021896,2]
[316054905,1709340646022,-500.0,0.00021896,2]
[316054907,1709340646031,-500.0,0.00021896,2]
[316054909,1709340646041,-500.0,0.00021896,2]
[316054911,1709340646049,-500.0,0.00021896,2]
[316054913,1709340646059,-500.0,0.00021896,2]
[316054915,1709340646071,-433.00418666,0.00021896,2]
[316054917,1709340646080,-500.0,0.00021896,2]
[316054919,1709340646089,-500.0,0.00021896,2]
[316054921,1709340646098,-500.0,0.00021896,2]
[316054923,1709340646108,-500.0,0.00021896,2]
[316054925,1709340646119,-500.0,0.00021896,2]
[316054927,1709340646128,-500.0,0.00021896,2]
[316054928,1709340646137,-500.0,0.00021896,2]
[316054929,1709340646146,-500.0,0.00021896,2]
[316054930,1709340646155,-1460.53877927,0.00021897,2]
[316054931,1709340646165,-775.31,0.00021897,2]
[316054932,1709340646173,-2169.7,0.00021897,2]
[316054933,1709340646182,-1003.2,0.00021897,2]
[316054934,1709340646191,-1160.61,0.00021897,2]
[316054935,1709340646200,-400.24472666,0.00021918,2]
[316054936,1709340646209,-157.14741337,0.00022,2]
[316054937,1709340646219,-327.22275751,0.00022186,2]
[316054938,1709340646228,-300.0,0.000225,10]
[316054939,1709340646237,-776.50846264,0.00022873,2]
[316054940,1709340646247,-620.03849599,0.00022914,2]
[316054941,1709340646256,-11613.0,0.00023,2]
[316054942,1709340646265,-272.22,0.00023,7]
[316054943,1709340646274,-2788.91634066,0.00023,2]
[316054944,1709340646282,-591.738319,0.00023,2]
[316054945,1709340646291,-591.738319,0.00023,2]
[316054946,1709340646300,-153.0,0.00023041,2]
[316054947,1709340646309,-153.0,0.00023178,2]
[316054948,1709340646318,-306.0,0.00023178,2]
[316054949,1709340646328,-153.0,0.00023178,2]
[316054951,1709340646338,-202.0455997,0.00023178,2]
[316054952,1709340646347,-287.6731672,0.00023178,2]
[316054953,1709340646357,-257.4123915,0.00023178,2]
[316054955,1709340646367,-776.50846264,0.00023216,2]
[316054957,1709340646376,-5000.0,0.00023294,5]
[316054959,1709340646385,-5000.0,0.00023294,5]
[316054962,1709340646393,-1000.0,0.00023301,5]
[316054965,1709340646403,-1000.0,0.00023301,5]
[316054968,1709340646412,-1000.0,0.00023301,5]
[316054971,1709340646422,-2890.44,0.00023369,2]
[316054974,1709340646431,-1545.51,0.00023369,2]
[316054976,1709340646441,-1362.81,0.00023369,2]
[316054979,1709340646450,-1133.98,0.00023369,2]
[316054981,1709340646459,-1724.21211612,0.0002337,2]
[316054982,1709340646468,-775.31,0.00023518,2]
[316054984,1709340646478,-2169.7,0.00023518,2]
[316054987,1709340646487,-1003.2,0.00023518,2]
[316054989,1709340646497,-1160.61,0.00023518,2]
[316054991,1709340646506,-776.50846264,0.00023558,2]
[316054992,1709340646514,-775.31,0.00023575,2]
[316054994,1709340646524,-2890.44,0.00023575,2]
[316054997,1709340646533,-1545.51,0.00023575,2]
[316054999,1709340646542,-1362.81,0.00023575,2]
[316055001,1709340646551,-2169.7,0.00023575,2]
[316055003,1709340646561,-1003.2,0.00023575,2]
[316055004,1709340646570,-1133.98,0.00023575,2]
[316055006,1709340646580,-1160.61,0.00023575,2]
[316055008,1709340646589,-234.5338,0.00023879,2]
[316055017,1709340646672,-776.50846264,0.000239,2]
[316055019,1709340646682,-775.31,0.00023905,2]
[316055021,1709340646692,-775.31,0.00023905,2]
[316055023,1709340646701,-775.31,0.00023905,2]
[316055024,1709340646710,-775.31,0.00023905,2]
[316055025,1709340646720,-775.39,0.00023905,2]
[316055027,1709340646728,-2169.7,0.00023905,2]
[316055028,1709340646737,-2169.7,0.00023905,2]
[316055030,1709340646746,-2169.7,0.00023905,2]
[316055031,1709340646756,-2169.7,0.00023905,2]
[316055033,1709340646765,-2169.71569648,0.00023905,2]
[316055035,1709340646775,-1003.2,0.00023905,2]
[316055037,1709340646784,-1003.2,0.00023905,2]
[316055039,1709340646793,-1003.2,0.00023905,2]
[316055041,1709340646802,-1003.2,0.00023905,2]
[316055043,1709340646812,-1003.21,0.00023905,2]
[316055045,1709340646822,-1160.61,0.00023905,2]
[316055047,1709340646831,-1160.61,0.00023905,2]
[316055049,1709340646840,-1160.61,0.00023905,2]
[316055051,1709340646849,-1160.61,0.00023905,2]
[316055053,1709340646860,-1160.71245189,0.00023905,2]
[316055055,1709340646869,-5807.61304522,0.00023995,5]
[316055057,1709340646878,-2890.44,0.00023996,2]
[316055059,1709340646887,-1545.51,0.00023996,2]
[316055061,1709340646896,-1362.81,0.00023996,2]
[316055063,1709340646906,-1133.98,0.00023996,2]
[316055065,1709340646915,-2890.44,0.00023997,2]
[316055067,1709340646924,-2890.44,0.00023997,2]
[316055069,1709340646933,-1545.51,0.00023997,2]
[316055071,1709340646942,-1545.51,0.00023997,2]
[316055073,1709340646951,-1362.81,0.00023997,2]
[316055075,1709340646960,-1362.81,0.00023997,2]
[316055077,1709340646970,-1133.98,0.00023997,2]
[316055079,1709340646979,-1133.98,0.00023997,2]
[316055081,1709340646989,-1000.0,0.00023997,2]
[316055083,1709340646998,-8341.74556447,0.00023998,2]
[316055091,1709340647068,-500.0,0.00020547,2]
[316055093,1709340647078,-2834.08910273,0.00023998,2]
[316055095,1709340647087,-197.5903061,0.00023998,2]
[316055097,1709340647096,-155.09150399,0.00023998,2]
[316055100,1709340647106,-744.34995698,0.00023998,2]
[316055102,1709340647116,-295.87885382,0.00023998,2]
[316055104,1709340647125,-200.01171087,0.00023998,2]
[316055106,1709340647134,-155.22494037,0.00023998,2]
[316055108,1709340647143,-181.32914019,0.00023998,2]
[316055112,1709340647173,-402.86338597,0.00020788,3]
[316055114,1709340647184,-223.61661403,0.00020788,3]
[316055116,1709340647193,-121.51208249,0.00023178,2]
[316055118,1709340647205,-31.48791751,0.00023178,2]
[316055120,1709340647214,-153.0,0.00023178,2]
[316055122,1709340647223,-630.89903819,0.00023998,2]
[316055124,1709340647231,-202.60745563,0.00023998,2]
[316055126,1709340647240,-300.22703876,0.00023998,2]
[316055128,1709340647249,-200.0,0.00023998,2]
[316055130,1709340647258,-185.40185691,0.00023998,2]
[316055132,1709340647269,-214.11882186,0.00023998,2]
[316055134,1709340647278,-206.11586222,0.00023998,2]
[316055136,1709340647287,-583.44422957,0.00023998,2]
[316055139,1709340647305,-200.7008514,0.00023178,2]
[316055141,1709340647315,-74.22884588,0.00023998,2]
[316055143,1709340647324,-1654.30348637,0.00023998,2]
[316055145,1709340647333,-158.82433248,0.00023998,2]
[316055147,1709340647342,-263.21964131,0.00023998,7]
[316055149,1709340647353,-155.11478494,0.00023998,2]
[316055151,1709340647362,-280.37029672,0.00023998,2]
[316055153,1709340647372,-205.9203372,0.00023998,2]
[316055155,1709340647381,-267.21087934,0.00023998,2]
[316055157,1709340647391,-1730.72092717,0.00023998,2]
[316055159,1709340647400,-298.61808289,0.00023998,2]
[316055161,1709340647410,-205.34317386,0.00023998,2]
[316055162,1709340647419,-1171.69564882,0.00023998,2]
[316055163,1709340647428,-523.71030091,0.00023998,3]
[316055164,1709340647437,-207.97712337,0.00023998,2]
[316055165,1709340647446,-508.84911227,0.00023998,2]
[316055166,1709340647457,-10098.67327328,0.00023998,2]
[316055167,1709340647466,-595.5942201,0.00023998,2]
[316055168,1709340647475,-155.2833993,0.00023998,2]
[316055169,1709340647485,-211.29666627,0.00023998,2]
[316055170,1709340647494,-240.49886462,0.00023998,2]
[316055171,1709340647503,-169.08281547,0.00023998,2]
[316055172,1709340647512,-247.69144409,0.00023998,2]
[316055173,1709340647522,-181.04497665,0.00023998,2]
[316055174,1709340647531,-192.42679543,0.00023998,2]
[316055175,1709340647540,-164.62275123,0.00023998,2]
[316055176,1709340647549,-198.6077684,0.00023998,2]
[316055177,1709340647559,-237.55164317,0.00023998,2]
[316055178,1709340647568,-429.41243131,0.00023998,2]
[316055179,1709340647577,-732.37933655,0.00023998,2]
[316055180,1709340647586,-200.08769918,0.00023998,2]
[316055181,1709340647595,-151.0,0.00023998,2]
[316055182,1709340647605,-591.738319,0.00023998,2]
[316055183,1709340647618,-591.738319,0.00023998,2]
[316055184,1709340647627,-1246.05370198,0.00023999,5]
[316055185,1709340647636,-2890.44,0.00023999,2]
[316055186,1709340647646,-2890.44,0.00023999,2]
[316055187,1709340647657,-2890.44,0.00023999,2]
[316055188,1709340647666,-2890.44,0.00023999,2]
[316055189,1709340647675,-2890.44,0.00023999,2]
[316055190,1709340647684,-2890.44,0.00023999,2]
[316055191,1709340647694,-2890.47,0.00023999,2]
[316055192,1709340647704,-1545.51,0.00023999,2]
[316055193,1709340647713,-1545.51,0.00023999,2]
[316055194,1709340647723,-1545.51,0.00023999,2]
[316055195,1709340647732,-1545.51,0.00023999,2]
[316055196,1709340647742,-1545.51,0.00023999,2]
[316055197,1709340647751,-1545.51,0.00023999,2]
[316055198,1709340647760,-1545.56952406,0.00023999,2]
[316055199,1709340647770,-1362.81,0.00023999,2]
[316055200,1709340647780,-1362.81,0.00023999,2]
[316055201,1709340647789,-1362.81,0.00023999,2]
[316055202,1709340647800,-1362.81,0.00023999,2]
[316055203,1709340647809,-1362.81,0.00023999,2]
[316055204,1709340647819,-1362.81,0.00023999,2]
[316055205,1709340647828,-1362.91499399,0.00023999,2]
[316055206,1709340647837,-1133.98,0.00023999,2]
[316055207,1709340647846,-1133.98,0.00023999,2]
[316055208,1709340647855,-1133.98,0.00023999,2]
[316055209,1709340647864,-1133.98,0.00023999,2]
[316055210,1709340647873,-1133.98,0.00023999,2]
[316055211,1709340647883,-1133.98,0.00023999,2]
[316055212,1709340647892,-1134.13711065,0.00023999,2]
[316055213,1709340647900,-45536.52396816,0.00024,5]
[316055214,1709340647913,-665.12874872,0.00024,5]
[316055216,1709340647923,-58579.378,0.00024,5]
[316055466,1709341832449,-1592.3001226,0.0001997,2]
[316055467,1709341832459,-313.01339088,0.0002,2]
[316055468,1709341832468,-1749.27914607,0.0002,2]
[316055469,1709341832477,-232.42777557,0.0002005,6]
[316055470,1709341832488,-679.65337983,0.00020447,2]
[316055471,1709341832498,-310.3,0.000205,2]
[316055472,1709341832507,-1423.98,0.00020537,3]
[316055473,1709341832516,-1186.65,0.00020537,3]
[316055475,1709341832525,-988.87,0.00020537,3]
[316055477,1709341832534,-824.06,0.00020537,3]
[316055479,1709341832543,-500.55631999,0.00020547,2]
[316055481,1709341832553,-500.0,0.00020547,2]
[316055489,1709341832653,-500.0,0.00020547,2]
[316055491,1709341832663,-500.0,0.00020547,2]
[316055492,1709341832672,-500.0,0.00020547,2]
[316055493,1709341832680,-500.0,0.00020547,2]
[316055495,1709341832690,-331.87495185,0.00020547,2]
[316055496,1709341832699,-500.0,0.00020547,2]
[316055498,1709341832709,-500.0,0.00020547,2]
[316055500,1709341832718,-212.18589872,0.00020547,2]
[316055502,1709341832726,-396.71082189,0.00020547,2]
[316055504,1709341832736,-500.0,0.00020547,2]
[316055506,1709341832745,-500.0,0.00020547,2]
[316055508,1709341832754,-501.51973904,0.00020547,2]
[316055510,1709341832763,-500.0,0.00020547,2]
[316055512,1709341832772,-500.0,0.00020547,2]
[316055514,1709341832780,-500.0,0.00020547,2]
[316055516,1709341832789,-500.0,0.00020547,2]
[316055518,1709341832798,-500.0,0.00020547,2]
[316055520,1709341832807,-568.85457968,0.00020547,2]
[316055522,1709341832816,-500.0,0.00020547,2]
[316055524,1709341832825,-500.0,0.00020547,2]
[316055526,1709341832834,-592.74414007,0.00020547,2]
[316055528,1709341832843,-500.0,0.00020547,2]
[316055530,1709341832852,-500.0,0.00020547,2]
[316055532,1709341832861,-500.0,0.00020547,2]
[316055534,1709341832870,-500.0,0.00020547,2]
[316055536,1709341832880,-500.0,0.00020547,2]
[316055538,1709341832891,-500.0,0.00020547,2]
[316055540,1709341832900,-500.0,0.00020547,2]
[316055542,1709341832909,-500.0,0.00020547,2]
[316055544,1709341832918,-500.0,0.00020547,2]
[316055546,1709341832928,-500.0,0.00020547,2]
[316055548,1709341832937,-154.93802479,0.00020547,2]
[316055550,1709341832946,-501.12589823,0.00020547,2]
[316055552,1709341832955,-500.0,0.00020547,2]
[316055554,1709341832966,-500.0,0.00020547,2]
[316055556,1709341832975,-500.0,0.00020547,2]
[316055558,1709341832985,-500.0,0.00020547,2]
[316055560,1709341832995,-500.0,0.00020547,2]
[316055562,1709341833005,-500.0,0.00020547,2]
[316055564,1709341833014,-501.31262234,0.00020547,2]
[316055566,1709341833024,-500.0,0.00020547,2]
[316055568,1709341833032,-303.12048688,0.00020547,2]
[316055570,1709341833042,-500.0,0.00020547,2]
[316055572,1709341833052,-500.0,0.00020547,2]
[316055573,1709341833062,-500.0,0.00020547,2]
[316055575,1709341833072,-503.6124049,0.00020547,2]
[316055577,1709341833081,-500.0,0.00020547,2]
[316055579,1709341833090,-500.0,0.00020547,2]
[316055581,1709341833098,-501.5394086,0.00020547,2]
[316055582,1709341833107,-500.0,0.00020547,2]
[316055583,1709341833116,-502.10608575,0.00020547,2]
[316055585,1709341833125,-500.0,0.00020547,2]
[316055587,1709341833135,-500.0,0.00020547,2]
[316055589,1709341833144,-500.0,0.00020547,2]